{"text_format":"1","workbook":"xlsx","n_sheets":1,"sheets":["ピアザホール"],"not_rendered":{"charts":0,"images":0,"macros":1,"external_links":0,"defined_names":2,"comments":0,"pivot_tables":0},"unopened":[],"bounds":{"document_bytes":16777216,"sheet_cells":100000,"rows_first":2000,"rows_last":500,"rows_between":2000,"halvings":0,"cell_chars":16384,"cell_head_chars":4096},"cells_cut":0,"cells_raw":0,"read":"whole","date_system":"1900"}

{"sheet":"ピアザホール","index":0,"n_rows":109,"n_cols":36,"rows_kept":109,"cut":false,"hidden":false,"merged":[[61,13,61,15],[62,13,62,15],[63,13,63,15],[1,0,1,9],[2,12,2,16],[3,11,3,16],[6,3,6,6],[37,1,37,9],[12,0,21,0],[12,3,12,4],[13,1,13,9],[14,1,14,9],[15,1,15,9],[16,1,16,9],[17,1,17,9],[18,1,18,9],[19,1,19,9],[20,1,20,9],[21,1,21,9],[10,16,11,16],[10,13,10,15],[10,0,11,0],[10,1,11,9],[10,10,11,10],[10,11,11,11],[10,12,11,12],[3,0,4,3],[38,0,42,0],[38,1,38,9],[39,1,39,9],[40,1,40,9],[41,1,41,9],[42,1,42,9],[27,1,27,9],[28,1,28,9],[29,1,29,9],[30,0,37,0],[30,1,30,9],[31,1,31,9],[32,1,32,9],[33,1,33,9],[34,1,34,9],[35,1,35,9],[22,0,29,0],[22,1,22,9],[23,1,25,1],[23,2,23,9],[24,2,24,9],[25,2,25,9],[26,1,26,9],[36,1,36,9],[43,0,51,0],[43,1,43,9],[44,1,44,9],[45,1,45,9],[46,1,46,9],[47,1,47,9],[48,1,48,9],[49,1,49,9],[50,1,50,9],[51,1,51,9],[79,16,85,16],[80,9,80,12],[81,9,81,12],[82,9,82,12],[83,9,83,12],[84,9,84,12],[85,9,85,12],[73,1,73,8],[73,9,73,12],[74,1,78,8],[74,9,74,12],[74,16,78,16],[75,9,75,12],[76,9,76,12],[77,9,77,12],[78,9,78,12],[91,9,91,12],[92,9,92,12],[79,0,85,0],[79,1,85,8],[79,9,79,12],[74,0,78,0],[52,0,58,0],[52,1,52,3],[53,1,53,3],[54,1,54,3],[55,1,55,3],[56,1,56,9],[57,1,57,9],[58,1,58,9],[59,0,59,9],[1,13,1,15],[65,15,70,15],[65,16,70,16],[95,16,102,16],[96,9,96,12],[97,9,97,12],[98,9,98,12],[99,9,99,12],[86,0,94,0],[86,1,94,8],[86,9,86,12],[86,16,94,16],[100,9,100,12],[101,9,101,12],[102,9,102,12],[93,9,93,12],[94,9,94,12],[95,0,102,0],[95,1,102,8],[95,9,95,12],[87,9,87,12],[88,9,88,12],[89,9,89,12],[90,9,90,12]]}
[]
["ピアザ淡海　滋賀県立県民交流センター",null,null,null,null,null,null,null,null,null,null,null,null,"2025-04-01",null,null,"改定"]
["■付帯設備使用申込書",null,null,null,null,null,null,null,null,null,null,null,"ピアザ淡海　滋賀県立県民交流センター"]
["ピアザホール",null,null,null,null,null,null,null,null,null,null,"指定管理者　株式会社コンベンションリンケージ"]
[null,null,null,null,null,null,null,null,null,null,null,null,null,"h:mm",null,"h:mm","←記入例"]
[null,null,null,"yyyy/mm/dd ←記入例（西暦）",null,null,null,null,null,null,null,"　　本番時間",null,null,"～"]
[null,"利用日",null,null,null,null,null,null,null,null,null,null,null,"午前","午後","夜間"]
[null,null,null,null,null,null,null,null,null,null,null,"　利用区分",null,null,null,null,null,null,null,null,null,null,null,null,null,null,null,null,null,{"$f":"IF(AH8,1)","v":false},{"$f":"IF(AI8,1)","v":false},false,{"$f":"SUM(AD8:AF8)","v":0},false,false,false]
[]
[]
["種別","品　　　名",null,null,null,null,null,null,null,null,"単位","利用料","数量","区　分",null,null,"金　額"]
[null,null,null,null,null,null,null,null,null,null,null,null,null,"A","P","N",null,null,null,null,null,null,null,null,null,"計"]
["照\n明\n設\n備","照明",null,null,null,"←セットを選んでください",null,null,null,null,"一式",{"$f":"IF(D13=\"セット\",0,IF(D13=\"Ａセット\",4100,IF(D13=\"Ｂセット\",5880,IF(D13=\"Ｃセット\",10500,IF(D13=\"Ｄセット\",12290,\"\")))))","v":""},null,null,null,null,{"$f":"IF(M13=\"\",\"\",L13*M13*Z13)","v":""},null,null,null,null,null,{"$f":"IF(AA13,1)","v":false},{"$f":"IF(AB13,1)","v":false},{"$f":"IF(AC13,1)","v":false},{"$f":"SUM(W13:Y13)","v":0},false,false,false]
[null,"ボーダーライト",null,null,null,null,null,null,null,null,"一式",1180,null,null,null,null,{"$f":"IF(M14=\"\",\"\",L14*M14*Z14)","v":""},null,null,null,null,null,{"$f":"IF(AA14,1)","v":false},{"$f":"IF(AB14,1)","v":false},{"$f":"IF(AC14,1)","v":false},{"$f":"SUM(W14:Y14)","v":0},false,false,false]
[null,"サスペンションライト　　　　　　　　　　",null,null,null,null,null,null,null,null,"列",2730,null,null,null,null,{"$f":"IF(M15=\"\",\"\",L15*M15*Z15)","v":""},null,null,null,null,null,false,false,false,0,false,false,false]
[null,"アッパーホリゾントライト",null,null,null,null,null,null,null,null,"列",740,null,null,null,null,"",null,null,null,null,null,false,false,false,0,false,false,false]
[null,"ロアーホリゾントライト",null,null,null,null,null,null,null,null,"列",740,null,null,null,null,"",null,null,null,null,null,false,false,false,0,false,false,false]
[null,"フロントサイドスポットライト",null,null,null,null,null,null,null,null,"台",1370,null,null,null,null,"",null,null,null,null,null,false,false,false,0,false,false,false]
[null,"ピンスポットライト",null,null,null,null,null,null,null,null,"台",1100,null,null,null,null,"",null,null,null,null,null,false,false,false,0,false,false,false]
[null,"客席照明スポットライト",null,null,null,null,null,null,null,null,"列",2730,null,null,null,null,"",null,null,null,null,null,false,false,false,0,false,false,false]
[null,"カラーフィルター",null,null,null,null,null,null,null,null,"枚",530,null,null,null,null,{"$f":"IF(M21=\"\",\"\",L21*M21*Z21)","v":""},null,null,null,null,null,{"$f":"IF(AA21,1)","v":false},{"$f":"IF(AB21,1)","v":false},null,0,false,false]
[null,"効果機材",null,null,null,null,null,null,null,null,"台",1160,null,null,null,null,{"$f":"IF(M22=\"\",\"\",L22*M22*Z22)","v":""},null,null,null,null,null,{"$f":"IF(AA22,1)","v":false},{"$f":"IF(AB22,1)","v":false},false,0,false,false,false]
["音\n響\n設\n備","ホール拡声装置　（基本マイク４本）",null,null,null,null,null,null,null,null,"式",2310,null,null,null,null,{"$f":"IF(M23=\"\",\"\",L23*M23*Z23)","v":""},null,null,null,null,null,{"$f":"IF(AA23,1)","v":false},{"$f":"IF(AB23,1)","v":false},{"$f":"IF(AC23,1)","v":false},0,false,false,false]
[null,"追加","ダイナミックマイク",null,null,null,null,null,null,null,"本",590,null,null,null,null,{"$f":"IF(M24=\"\",\"\",L24*M24*Z24)","v":""},null,null,null,null,null,false,false,false,0,false,false,false]
[null,null,"ワイヤレスマイク　（ハンド･ピン）",null,null,null,null,null,null,null,"本",590,null,null,null,null,{"$f":"IF(M25=\"\",\"\",L25*M25*Z25)","v":""},null,null,null,null,null,false,false,false,0,false,false,false]
[null,null,"コンデンサマイク",null,null,null,null,null,null,null,"本",590,null,null,null,null,"",null,null,null,null,null,false,false,false,0,false,false,false]
[null,"ステージスピーカー",null,null,null,null,null,null,null,null,"台",350,null,null,null,null,"",null,null,null,null,null,false,false,false,0,false,false,false]
[null,"はねかえりスピーカー",null,null,null,null,null,null,null,null,"1セット",260,null,null,null,null,"",null,null,null,null,null,false,false,false,0,false,false,false]
[null,"再生・録音用デッキ（MD・CD・カセットデッキ）",null,null,null,null,null,null,null,null,"台",350,null,null,null,null,"",null,null,null,null,null,false,false,false,0,false,false,false]
[null,"効果機材",null,null,null,null,null,null,null,null,"台",590,null,null,null,null,"",null,null,null,null,null,false,false,false,0,false,false,false]
["映\n像\n設\n備","16ﾐﾘ映写機　（スクリーンとも）",null,null,null,null,null,null,null,null,"台",2420,null,null,null,null,"",null,null,null,null,null,false,false,false,0,false,false,false]
[null,"スクリーンのみ",null,null,null,null,null,null,null,null,"台",590,null,null,null,null,"",null,null,null,null,null,false,false,false,0,false,false,false]
[null,"プロジェクター　（スクリーンとも）",null,null,null,null,null,null,null,null,"台",1470,null,null,null,null,"",null,null,null,null,null,false,false,false,0,false,false,false]
[null,"オーバーヘッドプロジェクター",null,null,null,null,null,null,null,null,"台",1790,null,null,null,null,"",null,null,null,null,null,false,false,false,0,false,false,false]
[null,"DVDプレーヤー",null,null,null,null,null,null,null,null,"台",590,null,null,null,null,"",null,null,null,null,null,false,false,false,0,false,false,false]
[null,"ビデオデッキ",null,null,null,null,null,null,null,null,"台",590,null,null,null,null,"",null,null,null,null,null,{"$f":"IF(AA36,1)","v":false},{"$f":"IF(AB36,1)","v":false},{"$f":"IF(AC36,1)","v":false},0,false,false,false]
[null,"三脚スクリーン",null,null,null,null,null,null,null,null,"台",130,null,null,null,null,"",null,null,null,null,null,false,false,false,0,false,false,false]
[null,"サブプロジェクター",null,null,null,null,null,null,null,null,"台",470,null,null,null,null,"",null,null,null,null,null,false,false,false,0,false,false,false]
["楽\n器\n等","ピアノ　（スタインウェイB-211）",null,null,null,null,null,null,null,null,"台",4620,null,null,null,null,"",null,null,null,null,null,false,false,false,0,false,false,false]
[null,"電子オルガン",null,null,null,null,null,null,null,null,"台",1370,null,null,null,null,"",null,null,null,null,null,false,false,false,0,false,false,false]
[null,"譜面台",null,null,null,null,null,null,null,null,"台",60,null,null,null,null,"",null,null,null,null,null,false,false,false,0,false,false,false]
[null,"指揮者用譜面台　（指揮台含む）",null,null,null,null,null,null,null,null,"台",230,null,null,null,null,"",null,null,null,null,null,false,false,false,0,false,false,false]
[null,"演奏者用椅子　（バス椅子)",null,null,null,null,null,null,null,null,"脚",120,null,null,null,null,"",null,null,null,null,null,false,false,false,0,false,false,false]
["舞\n台\n設\n備","演台・花台　（３点セット）",null,null,null,null,null,null,null,null,"一式",350,null,null,null,null,"",null,null,null,null,null,false,false,false,0,false,false,false]
[null,"司会者台",null,null,null,null,null,null,null,null,"台",180,null,null,null,null,"",null,null,null,null,null,false,false,false,0,false,false,false]
[null,"金屏風",null,null,null,null,null,null,null,null,"双",1160,null,null,null,null,"",null,null,null,null,null,false,false,false,0,false,false,false]
[null,"松羽目",null,null,null,null,null,null,null,null,"一式",590,null,null,null,null,"",null,null,null,null,null,false,false,false,0,false,false,false]
[null,"平台",null,null,null,null,null,null,null,null,"台",120,null,null,null,null,"",null,null,null,null,null,false,false,false,0,false,false,false]
[null,"国旗　・　県旗",null,null,null,null,null,null,null,null,"枚",130,null,null,null,null,"",null,null,null,null,null,false,false,false,0,false,false,false]
[null,"プログラムスタンド",null,null,null,null,null,null,null,null,"台",220,null,null,null,null,"",null,null,null,null,null,false,false,false,0,false,false,false]
[null,"毛せん",null,null,null,null,null,null,null,null,"枚",220,null,null,null,null,"",null,null,null,null,"切上",false,false,false,0,false,false,false]
[null,"バレエシート",null,null,null,null,null,null,null,null,"枚",350,null,null,null,null,"",null,"時間差","時間","分","時間",false,false,false,0,false,false,false]
["そ\nの\n他","冷暖房",null,null,null,null,"時〜",null,"時",null,"時間",1680,null,null,null,null,{"$f":"L53*M53","v":0},null,{"$f":"H53-F53","v":"00:00:00"},{"$f":"HOUR(S53)","v":0},{"$f":"MINUTE(S53)","v":0},{"$f":"T53+ROUNDUP(U53/60,0)","v":0}]
[null,"会議机",null,null,"受付×",null,"舞台×",null,"袖×",null,"脚",120,null,null,null,null,"",null,null,null,null,null,{"$f":"IF(AA54,1)","v":false},{"$f":"IF(AB54,1)","v":false},{"$f":"IF(AC54,1)","v":false},0,false,false,false]
[null,"会議椅子",null,null,"受付×",null,"舞台×",null,"袖×",null,"脚",60,null,null,null,null,"",null,null,null,null,null,{"$f":"IF(AA55,1)","v":false},{"$f":"IF(AB55,1)","v":false},{"$f":"IF(AC55,1)","v":false},0,false,false,false]
[null,"展示パネル",null,null,"受付×",null,"舞台×",null,"袖×",null,"枚",110,null,null,null,null,"",null,null,null,null,null,false,false,false,0,false,false,false]
[null,"ホワイトボード",null,null,null,null,null,null,null,null,"枚",320,null,null,null,null,"",null,null,null,null,null,false,false,false,0,false,false,false]
[null,"レーザーポインター（緑）",null,null,null,null,null,null,null,null,"個",130,null,null,null,null,"",null,null,null,null,null,false,false,false,0,false,false,false]
[null,"持込機材電気使用料(1Kwまで無料、以上1Kw毎）",null,null,null,null,null,null,null,null,"1kw",110,null,null,null,null,{"$f":"IF(M59=\"\",\"\",L59*M59*Z59)","v":""},null,null,null,null,null,false,false,false,0,false,false,false]
["        インターネット回線",null,null,null,null,null,null,null,null,null,1,1100,null,null,null,null,{"$f":"L60*Z60","v":0},null,null,null,null,null,{"$f":"IF(AA60,1)","v":false},{"$f":"IF(AB60,1)","v":false},{"$f":"IF(AC60,1)","v":false},0,false,false,false]
[null,null,null,null,null,null,null,null,null,null,null,null,null,null,null,null,null,null,null,null,null,null,false,false,false,0,false,false,false]
[null,null,null,null,null,null,null,null,null,null,null,null,null,"①ネット回線",null,null,{"$f":"Q60","v":0}]
[null,null,null,null,null,null,null,null,null,null,null,null,null,"②備品",null,null,{"$f":"SUM(Q13:Q59)","v":0}]
[null,null,null,null,null,null,null,null,null,null,null,null,null,"合計(①+②)",null,null,{"$f":"SUM(Q13:Q61)","v":0}]
["※　付帯設備の利用料については、上記の表に基づいて、ご利用日当日お支払いください。"]
["     尚、事前のお支払いでも当日追加変更があった場合、追加分の料金が必要となります。",null,null,null,null,null,null,null,null,null,null,null,null,null,null,"受付"]
["※冷暖房の記載は30分単位ですが、料金は1時間単位です。（59分までは1時間と見なします。）"]
["※お申込みの追加備品は、数に制約がありご要望に 添えない場合がありますのでご了承ください。"]
["※各部屋で使用できる電気容量には上限がございますので、消費電力量の大きい機器類を"]
["　 お持ち込の際には、必ず事前にお申し出ください。"]
["※ネット回線はランコネクター接続となります。接続用ケーブル、無線で接続の場合はWiFiルーターを"]
["　持参ください。"]
[null,null,"照明セット料金について"]
["セット","基本的な対応催事",null,null,null,null,null,null,null,"含まれる機材",null,null,null,null,null,"台数","使用料"]
["Aセット","式典・講演会・研修会・シンポジウム・ピアノ発表会等\n色付け等を行わない催事の\n基本照明",null,null,null,null,null,null,null,"サスペンションライト１",null,null,null,null,null,"８台",4100]
[null,null,null,null,null,null,null,null,null,"サスペンションライト２",null,null,null,null,null,"８台"]
[null,null,null,null,null,null,null,null,null,"フロントサイドスポットライト",null,null,null,null,null,"６台"]
[null,null,null,null,null,null,null,null,null,"客席照明スポットライト",null,null,null,null,null,"１２台"]
[null,null,null,null,null,null,null,null,null,"移動用スポットライト",null,null,null,null,null,"２台"]
["Bセット","Ａセットに加えて、\nホリゾント幕への色付け照明",null,null,null,null,null,null,null,"サスペンションライト１",null,null,null,null,null,"８台",5880]
[null,null,null,null,null,null,null,null,null,"サスペンションライト２",null,null,null,null,null,"８台"]
[null,null,null,null,null,null,null,null,null,"フロントサイドスポットライト",null,null,null,null,null,"６台"]
[null,null,null,null,null,null,null,null,null,"客席照明スポットライト",null,null,null,null,null,"１２台"]
[null,null,null,null,null,null,null,null,null,"アッパーホリゾントライト",null,null,null,null,null,"１列"]
[null,null,null,null,null,null,null,null,null,"ロアーホリゾントライト",null,null,null,null,null,"１列"]
[null,null,null,null,null,null,null,null,null,"移動用スポットライト",null,null,null,null,null,"４台"]
["Cセット","民舞・民謡・詩吟等\nある程度の照明効果を必要とする催事に対する照明",null,null,null,null,null,null,null,"サスペンションライト１",null,null,null,null,null,"１６台",10500]
[null,null,null,null,null,null,null,null,null,"サスペンションライト２",null,null,null,null,null,"１６台"]
[null,null,null,null,null,null,null,null,null,"フロントサイドスポットライト",null,null,null,null,null,"１２台"]
[null,null,null,null,null,null,null,null,null,"客席照明スポットライト",null,null,null,null,null,"１８台"]
[null,null,null,null,null,null,null,null,null,"ボーダーライト１",null,null,null,null,null,"１列"]
[null,null,null,null,null,null,null,null,null,"ボーダーライト２",null,null,null,null,null,"１列"]
[null,null,null,null,null,null,null,null,null,"アッパーホリゾントライト",null,null,null,null,null,"１列"]
[null,null,null,null,null,null,null,null,null,"ロアーホリゾントライト",null,null,null,null,null,"１列"]
[null,null,null,null,null,null,null,null,null,"移動用スポットライト",null,null,null,null,null,"６台"]
["Dセット","コンサート・バレエ・芝居・カラオケ等\nすべての機器材（但し、ピンスポット・効果機材は除く）を使用する催事に対する照明",null,null,null,null,null,null,null,"サスペンションライト１",null,null,null,null,null,"１列",12290]
[null,null,null,null,null,null,null,null,null,"サスペンションライト２",null,null,null,null,null,"１列"]
[null,null,null,null,null,null,null,null,null,"フロントサイドスポットライト",null,null,null,null,null,"１列"]
[null,null,null,null,null,null,null,null,null,"客席照明スポットライト",null,null,null,null,null,"１列"]
[null,null,null,null,null,null,null,null,null,"ボーダーライト１",null,null,null,null,null,"１列"]
[null,null,null,null,null,null,null,null,null,"ボーダーライト２",null,null,null,null,null,"１列"]
[null,null,null,null,null,null,null,null,null,"アッパーホリゾントライト",null,null,null,null,null,"１列"]
[null,null,null,null,null,null,null,null,null,"ロアーホリゾントライト",null,null,null,null,null,"１列"]
[]
[null,"セット"]
[null,"Ａセット"]
[null,"Ｂセット"]
[null,"Ｃセット"]
[null,"Ｄセット"]